fUST/lending_fUST_20260615
["ID","MTS","AMOUNT","RATE_DAILY","PERIOD"]
[425095014,1781489446000,-812246.08112987,0.00015938,2]
[425095013,1781489446000,-26696.4824819,0.00015938,2]
[425095223,1781490632000,-387.39972592,0.00013705,2]
[425095289,1781490638000,-46.05838415,0.00013705,2]
[425095299,1781490638000,-372.00159485,0.00014728,2]
[425095301,1781490638000,-203.27613614,0.00014728,2]
[425095304,1781490638000,-650.48363564,0.00014728,2]
[425095297,1781490638000,-258.5930339,0.00014728,2]
[425095302,1781490638000,-365.89704505,0.00014728,2]
[425095295,1781490638000,-351.86264521,0.00013992,2]
[425095293,1781490638000,-615.908,0.00013852,2]
[425095291,1781490638000,-165.55375515,0.00013844,2]
[425095319,1781490638000,-1463.58818019,0.00014728,2]
[425095324,1781490638000,-186.5,0.00015521,2]
[425095326,1781490638000,-1857.73267183,0.00015735,2]
[425095323,1781490638000,-216.68457,0.00015068,2]
[425095306,1781490638000,-389.03156289,0.00014728,2]
[425095330,1781490638000,-32293.40221067,0.00015735,2]
[425095328,1781490638000,-3904.35962132,0.00015735,2]
[425095321,1781490638000,-1990.11402802,0.00014728,2]
[425095317,1781490638000,-627.3491178,0.00014728,2]
[425095608,1781490640000,-5059.0760562,0.00015735,2]
[425095843,1781490643000,-4687.97517867,0.00015735,2]
[425095841,1781490643000,-720.0,0.00015735,2]
[425095839,1781490643000,-8723.20172005,0.00015735,2]
[425095834,1781490643000,-615.908,0.00015735,2]
[425096202,1781490646000,-201.681879,0.00015838,2]
[425096198,1781490646000,-201.681879,0.00015838,2]
[425096193,1781490646000,-201.681879,0.00015838,2]
[425096196,1781490646000,-201.681879,0.00015838,2]
[425096194,1781490646000,-201.681879,0.00015838,2]
[425096191,1781490646000,-201.681879,0.00015838,2]
[425096200,1781490646000,-201.681879,0.00015838,2]
[425096184,1781490646000,-8624.75577467,0.00015737,2]
[425096210,1781490646000,-500.0,0.00015894,2]
[425096182,1781490646000,-237873.63655314,0.00015735,2]
[425096174,1781490646000,-15153.41318504,0.00015735,2]
[425096176,1781490646000,-8295.31891492,0.00015735,2]
[425096178,1781490646000,-12477.8732666,0.00015735,2]
[425096150,1781490646000,-1829.19369361,0.00015735,2]
[425096185,1781490646000,-1006.37,0.000158,2]
[425096217,1781490646000,-500.0,0.00015894,2]
[425096189,1781490646000,-201.681879,0.00015838,2]
[425096224,1781490646000,-500.0,0.00015894,2]
[425096203,1781490646000,-643.08,0.00015838,2]
[425096231,1781490646000,-500.0,0.00015894,2]
[425096228,1781490646000,-500.0,0.00015894,2]
[425096233,1781490646000,-399.42366099,0.00015894,2]
[425096235,1781490646000,-500.0,0.00015894,2]
[425096229,1781490646000,-500.0,0.00015894,2]
[425096222,1781490646000,-500.0,0.00015894,2]
[425096212,1781490646000,-457.31191974,0.00015894,2]
[425096187,1781490646000,-151.0,0.00015838,2]
[425096209,1781490646000,-500.0,0.00015894,2]
[425096220,1781490646000,-500.0,0.00015894,2]
[425096215,1781490646000,-500.0,0.00015894,2]
[425096214,1781490646000,-500.0,0.00015894,2]
[425096205,1781490646000,-1259.7,0.00015838,2]
[425096207,1781490646000,-770.900624,0.00015871,2]
[425096226,1781490646000,-500.0,0.00015894,2]
[425096219,1781490646000,-500.0,0.00015894,2]
[425096291,1781490647000,-612.0,0.00015894,2]
[425096271,1781490647000,-1014.0,0.00015894,2]
[425096265,1781490647000,-500.0,0.00015894,2]
[425096269,1781490647000,-1014.0,0.00015894,2]
[425096267,1781490647000,-245.79388081,0.00015894,2]
[425096287,1781490647000,-612.0,0.00015894,2]
[425096285,1781490647000,-1014.0,0.00015894,2]
[425096262,1781490647000,-500.0,0.00015894,2]
[425096289,1781490647000,-1014.0,0.00015894,2]
[425096293,1781490647000,-1014.0,0.00015894,2]
[425096273,1781490647000,-612.0,0.00015894,2]
[425096258,1781490647000,-500.0,0.00015894,2]
[425096252,1781490647000,-500.0,0.00015894,2]
[425096254,1781490647000,-618.85366935,0.00015894,2]
[425096256,1781490647000,-500.0,0.00015894,2]
[425096244,1781490647000,-500.0,0.00015894,2]
[425096245,1781490647000,-500.0,0.00015894,2]
[425096238,1781490647000,-500.0,0.00015894,2]
[425096242,1781490647000,-389.88548418,0.00015894,2]
[425096251,1781490647000,-374.19784661,0.00015894,2]
[425096249,1781490647000,-500.0,0.00015894,2]
[425096237,1781490647000,-500.0,0.00015894,2]
[425096247,1781490647000,-500.0,0.00015894,2]
[425096263,1781490647000,-500.0,0.00015894,2]
[425096240,1781490647000,-500.0,0.00015894,2]
[425096274,1781490647000,-1014.0,0.00015894,2]
[425096276,1781490647000,-612.0,0.00015894,2]
[425096295,1781490647000,-612.0,0.00015894,2]
[425096321,1781490647000,-1014.0,0.00015894,2]
[425096332,1781490647000,-375.34928772,0.00015894,2]
[425096330,1781490647000,-612.0,0.00015894,2]
[425096328,1781490647000,-1014.0,0.00015894,2]
[425096323,1781490647000,-612.0,0.00015894,2]
[425096324,1781490647000,-1014.0,0.00015894,2]
[425096326,1781490647000,-612.0,0.00015894,2]
[425096319,1781490647000,-612.0,0.00015894,2]
[425096312,1781490647000,-612.0,0.00015894,2]
[425096306,1781490647000,-1014.0,0.00015894,2]
[425096310,1781490647000,-1014.0,0.00015894,2]
[425096278,1781490647000,-1014.0,0.00015894,2]
[425096314,1781490647000,-1014.0,0.00015894,2]
[425096282,1781490647000,-1014.0,0.00015894,2]
[425096284,1781490647000,-612.0,0.00015894,2]
[425096296,1781490647000,-741.63896772,0.00015894,2]
[425096300,1781490647000,-612.0,0.00015894,2]
[425096280,1781490647000,-612.0,0.00015894,2]
[425096302,1781490647000,-1014.0,0.00015894,2]
[425096308,1781490647000,-612.0,0.00015894,2]
[425096315,1781490647000,-612.0,0.00015894,2]
[425096317,1781490647000,-1014.0,0.00015894,2]
[425096299,1781490647000,-272.36103228,0.00015894,2]
[425096304,1781490647000,-612.0,0.00015894,2]
[425096543,1781490691000,-500.0,0.0001562,2]
[425096545,1781490708000,-500.0,0.0001562,2]
[425096547,1781490725000,-500.0,0.0001562,2]
[425096548,1781490769000,1500.0,0.00024,120]
[425096552,1781490847000,151.0,0.0002,120]
[425096553,1781490848000,151.0,0.000224,120]
[425096558,1781491149000,1279.83,0.000241,30]
[425096563,1781491692000,10000.0,0.0002411,30]
[425096564,1781491711000,10000.0,0.0002411,30]
[425096565,1781491730000,10000.0,0.0002411,30]
[425096621,1781491748000,10000.0,0.0002411,30]
[425096665,1781491764000,10000.0,0.0002411,30]
[425096666,1781491782000,10000.0,0.0002411,30]
[425096667,1781491799000,10000.0,0.0002411,30]
[425096668,1781491814000,10000.0,0.0002411,30]
[425096670,1781491830000,10000.0,0.0002411,30]
[425096704,1781491832000,-300.0,9.999e-05,2]
[425096706,1781491832000,-1713.05918132,0.0001,2]
[425096708,1781491832000,-2750.0,0.0001,2]
[425096723,1781491832000,-692.80529833,0.0001,2]
[425096721,1781491832000,-2856.0122988,0.0001,2]
[425096725,1781491832000,-12785.42347687,0.0001,2]
[425096719,1781491832000,-1076.45481776,0.0001,2]
[425096885,1781491838000,-300.0,0.00010199,2]
[425096883,1781491838000,-300.0,0.00010199,2]
[425096884,1781491838000,-300.0,0.00010199,2]
[425096887,1781491838000,-300.0,0.00010199,2]
[425096882,1781491838000,-300.0,0.00010199,2]
[425096880,1781491838000,-300.0,0.00010199,2]
[425096886,1781491838000,-300.0,0.00010199,2]
[425096881,1781491838000,-300.0,0.00010199,2]
[425096878,1781491838000,-300.0,0.00010199,2]
[425096879,1781491838000,-300.0,0.00010199,2]
[425096869,1781491838000,-300.0,0.00010199,2]
[425096875,1781491838000,-300.0,0.00010199,2]
[425096867,1781491838000,-2625.85712515,0.00010099,2]
[425096888,1781491838000,-600.0,0.00010402,2]
[425096871,1781491838000,-300.0,0.00010199,2]
[425096861,1781491838000,-305.31094566,0.0001,2]
[425096863,1781491838000,-2197.94544246,0.0001,2]
[425096865,1781491838000,-217.81639335,0.0001,2]
[425096876,1781491838000,-300.0,0.00010199,2]
[425096873,1781491838000,-300.0,0.00010199,2]
[425096890,1781491838000,-7436.0,0.0001111,2]
[425096891,1781491838000,-720.0,0.00011442,2]
[425096925,1781491838000,-5062.15264203,0.0001552,2]
[425096921,1781491838000,-872.534336,0.00015374,2]
[425096923,1781491838000,-1010.0,0.000155,2]
[425096919,1781491838000,-244.0,0.0001523,2]
[425096912,1781491838000,-528.53286397,0.00014344,2]
[425096910,1781491838000,-367.4041152,0.00014344,2]
[425096917,1781491838000,-1000.0,0.0001523,2]
[425096906,1781491838000,-205.74630451,0.00014344,2]
[425096915,1781491838000,-173.347656,0.00015068,2]
[425096908,1781491838000,-235.13863373,0.00014344,2]
[425096889,1781491838000,-420.0,0.00010999,2]
[425096902,1781491838000,-1000.0,0.00013845,2]
[425096892,1781491838000,-2625.85712509,0.00011538,2]
[425096893,1781491838000,-587.0,0.00012099,2]
[425096894,1781491838000,-864.0,0.00012586,2]
[425096895,1781491838000,-4845.0617797,0.00012745,2]
[425096914,1781491838000,-872.534336,0.00014799,2]
[425096899,1781491838000,-239.0,0.00013309,2]
[425096901,1781491838000,-872.534336,0.0001365,2]
[425096904,1781491838000,-872.534336,0.00014224,2]
[425096897,1781491838000,-251.95618108,0.00013212,2]
[425096927,1781491839000,-15463.57914573,0.0001552,2]
[425097381,1781491843000,-2625.85712509,0.00012976,2]
[425097412,1781491843000,-722.0,0.0001552,2]
[425097382,1781491843000,-1706.27245657,0.0001552,2]
[425097570,1781491846000,10000.0,0.0002411,30]
[425097569,1781491846000,-1831.55,0.0001552,2]
[425097567,1781491846000,-2625.85712509,0.00014415,2]
[425097568,1781491846000,-443.58352572,0.0001552,2]
[425097696,1781491862000,10000.0,0.0002411,30]
[425097697,1781491881000,10000.0,0.0002411,30]
[425097698,1781491899000,10000.0,0.0002411,30]
[425097701,1781491916000,10000.0,0.0002411,30]
[425097703,1781491935000,10000.0,0.0002411,30]
[425097704,1781491950000,10000.0,0.0002411,30]
[425097706,1781491968000,9000.0,0.0002411,30]
[425097709,1781491984000,10000.0,0.0002411,30]
[425097710,1781491994000,3000.0,0.000241,30]
[425097711,1781492002000,10000.0,0.0002411,30]
[425097712,1781492019000,10000.0,0.0002411,30]
[425097714,1781492048000,1056.0,0.0002411,30]
[425097722,1781492434000,-500.0,0.0001,2]
[425097723,1781492489000,-512.50873181,0.00014414,2]
[425097734,1781492506000,-173.347656,0.00015068,2]
[425097735,1781492523000,-1312.92856258,0.00015415,2]
[425097737,1781492540000,-2862.47037047,0.00015416,2]
[425097738,1781492557000,-2862.47037047,0.00015416,2]
[425097924,1781493038000,-4375.17586626,0.00015313,2]
[425097926,1781493038000,-4375.17586626,0.00015313,2]
[425097920,1781493038000,-1148.81249224,0.00015312,2]
[425097929,1781493038000,-4375.17586626,0.00015313,2]
[425097922,1781493038000,-500.0,0.00015313,2]
[425097931,1781493038000,-272.81098873,0.00015313,2]
[425097933,1781493038000,-4375.17586626,0.00015313,2]
[425097940,1781493038000,-4375.17586626,0.00015313,2]
[425097939,1781493038000,-4375.17586626,0.00015313,2]
[425097928,1781493038000,-4375.17586626,0.00015313,2]
[425097935,1781493038000,-4375.17586626,0.00015313,2]
[425097937,1781493038000,-4375.17586626,0.00015313,2]
[425097959,1781493039000,-16096.69974314,0.00015314,2]
[425097957,1781493039000,-38261.39120421,0.00015314,2]
[425097954,1781493039000,-4375.17586626,0.00015313,2]
[425097955,1781493039000,-657836.08060687,0.00015314,2]
[425097953,1781493039000,-4375.17586626,0.00015313,2]
[425097952,1781493039000,-4375.17586626,0.00015313,2]
[425097951,1781493039000,-4375.17586626,0.00015313,2]
[425097949,1781493039000,-4375.17586626,0.00015313,2]
[425097948,1781493039000,-4375.17586626,0.00015313,2]
[425097942,1781493039000,-4375.17586626,0.00015313,2]
[425097946,1781493039000,-4375.17586626,0.00015313,2]
[425097944,1781493039000,-4375.17586626,0.00015313,2]
[425097962,1781493039000,-22517.958915,0.00015314,2]
[425098165,1781493047000,-491.92488302,0.00015314,2]
[425098169,1781493080000,500.0,0.0002411,30]
[425098170,1781493096000,500.0,0.0002411,30]
[425098171,1781493117000,500.0,0.0002411,30]
[425098172,1781493135000,500.0,0.0002411,30]
[425098173,1781493201000,500.0,0.0002411,30]
[425098174,1781493245000,500.0,0.0002411,30]
[425098225,1781493850000,1000.0,0.0002411,30]
[425098226,1781493878000,1000.0,0.0002411,30]
[425098278,1781494183000,500.0,0.0002411,30]
[425098318,1781494233000,-2612.1141545,0.00014611,13]
[425098319,1781494233000,-178.482,0.00014908,2]
[425098320,1781494233000,-675.25929485,0.00015011,2]
[425098313,1781494233000,-642.55324006,0.00014611,13]
[425098399,1781494239000,-173.347656,0.00015068,2]
[425098401,1781494239000,-346.41236376,0.0001511,2]
[425098397,1781494239000,-418.49014673,0.00015011,2]
[425099428,1781495352000,-615.908,0.00011842,2]
[425099454,1781495431000,-387.39972592,0.00011724,2]
[425099635,1781495440000,-153.80807652,0.00012219,2]
[425099641,1781495440000,-263.28,0.00014503,2]
[425099648,1781495440000,-2914.5847969,0.00014905,2]
[425099646,1781495440000,-437.04398298,0.00014905,2]
[425099643,1781495440000,-1829.19369361,0.00014805,2]
[425099650,1781495440000,-2914.5847969,0.00014905,2]
[425099633,1781495440000,-4384.092,0.00011842,2]
[425099637,1781495440000,-538.32,0.00012329,2]
[425099639,1781495440000,-188.8130784,0.00013699,2]
[425099654,1781495440000,-2914.5847969,0.00014905,2]
[425099644,1781495440000,-160.26812268,0.000149,2]
[425099652,1781495440000,-2914.5847969,0.00014905,2]
[425099672,1781495440000,-500.0,0.00014905,2]
[425099674,1781495440000,-500.0,0.00014905,2]
[425099670,1781495440000,-500.0,0.00014905,2]
[425099666,1781495440000,-2914.5847969,0.00014905,2]
[425099675,1781495440000,-2387.07934898,0.00014905,2]
[425099660,1781495440000,-2914.5847969,0.00014905,2]
[425099658,1781495440000,-2914.5847969,0.00014905,2]
[425099656,1781495440000,-2914.5847969,0.00014905,2]
[425099662,1781495440000,-2914.5847969,0.00014905,2]
[425099668,1781495440000,-2914.5847969,0.00014905,2]
[425099664,1781495440000,-2914.5847969,0.00014905,2]
[425100226,1781495446000,-292.68919035,0.00014905,2]
[425100225,1781495446000,-207.31080965,0.00014905,2]
[425100224,1781495446000,-2707.27398725,0.00014905,2]
[425100222,1781495446000,-2353.10905397,0.00014905,2]
[425100223,1781495446000,-500.0,0.00014905,2]
[425100220,1781495446000,-500.0,0.00014905,2]
[425100221,1781495446000,-561.47574293,0.00014905,2]
[425100218,1781495446000,-527.50544792,0.00014905,2]
[425100219,1781495446000,-645.06670087,0.00014905,2]
[425100350,1781495592000,3000.0,0.000241,30]
[425100356,1781495888000,4384.092,0.00011,13]
[425100561,1781496638000,-360.96968976,0.0001382,2]
[425100583,1781496638000,-3534.96727182,0.00013993,2]
[425100581,1781496638000,-3534.96727182,0.00013993,2]
[425100579,1781496638000,-3534.96727182,0.00013993,2]
[425100587,1781496638000,-3534.96727182,0.00013993,2]
[425100575,1781496638000,-3534.96727182,0.00013993,2]
[425100577,1781496638000,-3534.96727182,0.00013993,2]
[425100589,1781496638000,-3534.96727182,0.00013993,2]
[425100573,1781496638000,-3534.96727182,0.00013993,2]
[425100591,1781496638000,-3534.96727182,0.00013993,2]
[425100571,1781496638000,-3534.96727182,0.00013993,2]
[425100557,1781496638000,-367.36622494,0.00012473,2]
[425100565,1781496638000,-3534.96727182,0.00013993,2]
[425100559,1781496638000,-188.8130784,0.00013699,2]
[425100567,1781496638000,-437.04398298,0.00013993,2]
[425100555,1781496638000,-538.32,0.00012329,2]
[425100563,1781496638000,-300.0,0.00013993,2]
[425100551,1781496638000,-1019.05,9.801e-05,2]
[425100553,1781496638000,-601.55347722,0.0001,2]
[425100569,1781496638000,-3534.96727182,0.00013993,2]
[425100585,1781496638000,-3534.96727182,0.00013993,2]
[425100616,1781496638000,-500.0,0.00013993,2]
[425100597,1781496638000,-500.0,0.00013993,2]
[425100628,1781496638000,-500.0,0.00013993,2]
[425100630,1781496638000,-500.0,0.00013993,2]
[425100632,1781496638000,-500.0,0.00013993,2]
[425100626,1781496638000,-500.0,0.00013993,2]
[425100624,1781496638000,-500.0,0.00013993,2]
[425100622,1781496638000,-500.0,0.00013993,2]
[425100620,1781496638000,-500.0,0.00013993,2]
[425100613,1781496638000,-52.09020663,0.00013993,2]
[425100608,1781496638000,-500.0,0.00013993,2]
[425100610,1781496638000,-447.90979337,0.00013993,2]
[425100618,1781496638000,-500.0,0.00013993,2]
[425100606,1781496638000,-500.0,0.00013993,2]
[425100634,1781496638000,-75.2600321,0.00013993,2]
[425100603,1781496638000,-3534.96727182,0.00013993,2]
[425100599,1781496638000,-645.06670087,0.00013993,2]
[425100614,1781496638000,-3534.96727182,0.00013993,2]
[425100604,1781496638000,-522.951728,0.00013993,2]
[425100595,1781496638000,-500.0,0.00013993,2]
[425100601,1781496638000,-500.0,0.00013993,2]
[425100593,1781496638000,-500.0,0.00013993,2]
[425100676,1781496643000,-351.41676919,0.00013993,2]
[425100691,1781496646000,-2956.72140703,0.00013853,2]
[425100698,1781497150000,508.59044602,0.0002411,30]
[425100706,1781497605000,3574.09870938,0.00011,13]
[425100715,1781497804000,439.0,0.00018,120]
[425100791,1781497834000,-528.707088,0.00013994,2]
[425100797,1781497834000,-53.30973286,0.00013994,2]
[425100796,1781497834000,-528.707088,0.00013994,2]
[425100786,1781497834000,-520.19853083,0.00013994,2]
[425100785,1781497834000,-150.93111734,0.00013994,2]
[425100784,1781497834000,-280.94541835,0.00013994,2]
[425100778,1781497834000,-160.48239209,0.00012023,2]
[425100781,1781497834000,-1000.0,0.00013699,2]
[425100779,1781497834000,-647.8974748,0.00012808,2]
[425100783,1781497834000,-409.387493,0.00013978,2]
[425100780,1781497834000,-263.28,0.0001297,2]
[425100777,1781497834000,-221.13245884,0.00010476,2]
[425100775,1781497834000,-5000.0,0.00010371,2]
[425100776,1781497834000,-153.42214266,0.00010476,2]
[425100789,1781497834000,-528.707088,0.00013994,2]
[425100782,1781497834000,-153.80807652,0.0001378,2]
[425100793,1781497834000,-528.707088,0.00013994,2]
[425100792,1781497834000,-528.707088,0.00013994,2]
[425100788,1781497834000,-528.707088,0.00013994,2]
[425100809,1781497834000,-81.70261799,0.00013994,2]
[425100787,1781497834000,-528.707088,0.00013994,2]
[425100803,1781497834000,-528.707088,0.00013994,2]
[425100808,1781497834000,-528.707088,0.00013994,2]
[425100804,1781497834000,-528.707088,0.00013994,2]
[425100805,1781497834000,-528.707088,0.00013994,2]
[425100807,1781497834000,-459.23572718,0.00013994,2]
[425100802,1781497834000,-528.707088,0.00013994,2]
[425100806,1781497834000,-69.47136082,0.00013994,2]
[425100800,1781497834000,-528.707088,0.00013994,2]
[425100799,1781497834000,-528.707088,0.00013994,2]
[425100798,1781497834000,-475.39735514,0.00013994,2]
[425100795,1781497834000,-528.707088,0.00013994,2]
[425100794,1781497834000,-528.707088,0.00013994,2]
[425100790,1781497834000,-528.707088,0.00013994,2]
[425100801,1781497834000,-528.707088,0.00013994,2]
[425100881,1781497838000,-500.0,0.00013994,2]
[425100878,1781497838000,-500.0,0.00013994,2]
[425100876,1781497838000,-500.0,0.00013994,2]
[425100874,1781497838000,-500.0,0.00013994,2]
[425100873,1781497838000,-500.0,0.00013994,2]
[425100870,1781497838000,-501.83649305,0.00013994,2]
[425100860,1781497838000,-302.863246,0.00013994,2]
[425100867,1781497838000,-302.863246,0.00013994,2]
[425100862,1781497838000,-302.863246,0.00013994,2]
[425100864,1781497838000,-302.863246,0.00013994,2]
[425100858,1781497838000,-112.78439601,0.00013994,2]
[425100887,1781497838000,-500.0,0.00013994,2]
[425100869,1781497838000,-500.0,0.00013994,2]
[425100885,1781497838000,-500.0,0.00013994,2]
[425100891,1781497838000,-500.0,0.00013994,2]
[425100889,1781497838000,-500.0,0.00013994,2]
[425100883,1781497838000,-500.0,0.00013994,2]
[425100917,1781497838000,-151.0,0.00013996,2]
[425100911,1781497838000,-151.0,0.00013996,2]
[425100913,1781497838000,-151.0,0.00013996,2]
[425100909,1781497838000,-151.0,0.00013996,2]
[425100899,1781497838000,-500.0,0.00013994,2]
[425100901,1781497838000,-494.69637654,0.00013994,2]
[425100915,1781497838000,-151.0,0.00013996,2]
[425100905,1781497838000,-151.790273,0.00013995,2]
[425100903,1781497838000,-151.0,0.00013995,2]
[425100897,1781497838000,-500.0,0.00013994,2]
[425100893,1781497838000,-500.0,0.00013994,2]
[425100895,1781497838000,-500.0,0.00013994,2]
[425100907,1781497838000,-507.94175963,0.00013995,2]
[425100994,1781497839000,-3011.13090495,0.00013998,2]
[425100996,1781497839000,-3011.13090495,0.00013998,2]
[425100992,1781497839000,-3011.13090495,0.00013998,2]
[425100990,1781497839000,-3011.13090495,0.00013998,2]
[425100984,1781497839000,-3011.13090495,0.00013998,2]
[425100982,1781497839000,-3011.13090495,0.00013998,2]
[425100976,1781497839000,-3049.94843043,0.00013998,2]
[425100980,1781497839000,-3011.13090495,0.00013998,2]
[425100986,1781497839000,-3011.13090495,0.00013998,2]
[425101000,1781497839000,-302.863246,0.00014,2]
[425100988,1781497839000,-3011.13090495,0.00013998,2]
[425100998,1781497839000,-3578.61326782,0.00013998,2]
[425101006,1781497839000,-457.708004,0.00014086,2]
[425101002,1781497839000,-302.863246,0.00014,2]
[425101001,1781497839000,-302.863246,0.00014,2]
[425101003,1781497839000,-303935.52118799,0.00014,2]
[425100999,1781497839000,-302.863246,0.00014,2]
[425101005,1781497839000,-178348.99704952,0.00014,2]
[425100978,1781497839000,-3049.94843043,0.00013998,2]
[425101008,1781497839000,-151.0,0.00014086,2]
[425101012,1781497839000,-326.7384617,0.00014086,2]
[425101019,1781497839000,-326.7384617,0.00014829,2]
[425101007,1781497839000,-457.708004,0.00014086,2]
[425101017,1781497839000,-151.0,0.00014829,2]
[425101010,1781497839000,-457.708004,0.00014086,2]
[425100997,1781497839000,-3011.13090495,0.00013998,2]
[425100974,1781497839000,-3049.94843043,0.00013998,2]
[425100962,1781497839000,-3049.94843043,0.00013998,2]
[425100970,1781497839000,-3049.94843043,0.00013998,2]
[425101013,1781497839000,-600.0,0.00014277,2]
[425100919,1781497839000,-151.0,0.00013996,2]
[425100921,1781497839000,-151.0,0.00013996,2]
[425100931,1781497839000,-151.0,0.00013997,2]
[425100925,1781497839000,-192.0,0.00013996,2]
[425100923,1781497839000,-151.0,0.00013996,2]
[425100927,1781497839000,-151.0,0.00013997,2]
[425100929,1781497839000,-151.0,0.00013997,2]
[425100935,1781497839000,-302.863246,0.00013997,2]
[425100933,1781497839000,-151.0,0.00013997,2]
[425100938,1781497839000,-302.863246,0.00013997,2]
[425100940,1781497839000,-302.863246,0.00013997,2]
[425100942,1781497839000,-302.863246,0.00013997,2]
[425100948,1781497839000,-3049.94843043,0.00013998,2]
[425100954,1781497839000,-3049.94843043,0.00013998,2]
[425100950,1781497839000,-3049.94843043,0.00013998,2]
[425100944,1781497839000,-507.83485743,0.00013998,2]
[425100946,1781497839000,-305.93078809,0.00013998,2]
[425100953,1781497839000,-3049.94843043,0.00013998,2]
[425100956,1781497839000,-3049.94843043,0.00013998,2]
[425100958,1781497839000,-3049.94843043,0.00013998,2]
[425100961,1781497839000,-3049.94843043,0.00013998,2]
[425100965,1781497839000,-3049.94843043,0.00013998,2]
[425100968,1781497839000,-3049.94843043,0.00013998,2]
[425100966,1781497839000,-3049.94843043,0.00013998,2]
[425100972,1781497839000,-3049.94843043,0.00013998,2]
[425101015,1781497839000,-409.387493,0.00014566,2]
[425101031,1781497839000,-326.7384617,0.00014829,2]
[425101027,1781497839000,-151.0,0.00014829,2]
[425101079,1781497839000,-397.69795929,0.00014905,2]
[425101084,1781497839000,-302.863246,0.00014908,2]
[425101086,1781497839000,-302.863246,0.00014908,2]
[425101100,1781497839000,-457.708004,0.00014908,2]
[425101092,1781497839000,-457.708004,0.00014908,2]
[425101096,1781497839000,-457.708004,0.00014908,2]
[425101098,1781497839000,-151.0771627,0.00014908,2]
[425101094,1781497839000,-198.867663,0.00014908,2]
[425101088,1781497839000,-302.863246,0.00014908,2]
[425101102,1781497839000,-151.0,0.00014908,2]
[425101105,1781497839000,-326.7384617,0.00014908,2]
[425101109,1781497839000,-151.0,0.00014908,2]
[425101107,1781497839000,-151.0,0.00014908,2]
[425101111,1781497839000,-457.708004,0.00014908,2]
[425101115,1781497839000,-326.7384617,0.00014908,2]
[425101123,1781497839000,-457.708004,0.00014908,2]
[425101113,1781497839000,-326.7384617,0.00014908,2]
[425101117,1781497839000,-457.708004,0.00014908,2]
[425101119,1781497839000,-456.5451509,0.00014908,2]
[425101121,1781497839000,-326.7384617,0.00014908,2]
[425101125,1781497839000,-326.7384617,0.00014908,2]
[425101128,1781497839000,-326.7384617,0.00014908,2]
[425101126,1781497839000,-326.7384617,0.00014908,2]
[425101130,1781497839000,-321.2875045,0.00014908,2]
[425101021,1781497839000,-314.9857096,0.00014829,2]
[425101081,1781497839000,-1598.2866591,0.00014905,2]
[425101077,1781497839000,-220.94331072,0.00014905,2]
[425101090,1781497839000,-302.863236,0.00014908,2]
[425101060,1781497839000,-302.863246,0.00014829,2]
[425101023,1781497839000,-457.708004,0.00014829,2]
[425101025,1781497839000,-324.487015,0.00014829,2]
[425101029,1781497839000,-457.708004,0.00014829,2]
[425101132,1781497839000,-157335.14819439,0.00015,2]
[425101035,1781497839000,-457.708004,0.00014829,2]
[425101082,1781497839000,-1122.19326837,0.00014905,2]
[425101033,1781497839000,-151.0,0.00014829,2]
[425101039,1781497839000,-151.0,0.00014829,2]
[425101043,1781497839000,-326.7384617,0.00014829,2]
[425101044,1781497839000,-326.7384617,0.00014829,2]
[425101041,1781497839000,-457.5072255,0.00014829,2]
[425101046,1781497839000,-151.0,0.00014829,2]
[425101051,1781497839000,-326.7384617,0.00014829,2]
[425101037,1781497839000,-326.7384617,0.00014829,2]
[425101049,1781497839000,-326.7384617,0.00014829,2]
[425101055,1781497839000,-326.7384617,0.00014829,2]
[425101069,1781497839000,-224.43865367,0.00014905,2]